bitfinex/quotes_SOLUSD_20250929
["timestamp","ask_amount","ask_price","bid_price","bid_amount"]
[1759110498401,59.33321186,209.95,209.94,1e-08]
[1759110498707,22.51321186,209.95,209.94,1e-08]
[1759110499002,59.33321186,209.95,209.94,1e-08]
[1759110499992,57.08971951,209.95,209.94,1e-08]
[1759110500196,58.61321186,209.95,209.94,1e-08]
[1759110500799,59.33321186,209.95,209.94,1e-08]
[1759110501104,58.61321186,209.95,209.94,1e-08]
[1759110501989,21.79321186,209.95,209.94,1e-08]
[1759110502306,58.61321186,209.95,209.94,1e-08]
[1759110502685,59.33321186,209.95,209.94,1e-08]
[1759110502888,21.79321186,209.95,209.94,1e-08]
[1759110503194,58.61321186,209.95,209.94,1e-08]
[1759110505287,58.59321186,209.95,209.94,1e-08]
[1759110506312,59.31321186,209.95,209.94,1e-08]
[1759110506498,22.51321186,209.95,209.94,1e-08]
[1759110506809,59.31321186,209.95,209.94,1e-08]
[1759110507907,22.51321186,209.95,209.94,1e-08]
[1759110508512,59.31321186,209.95,209.94,1e-08]
[1759110508689,62.50001665,209.95,209.94,1e-08]
[1759110509006,60.9765243,209.95,209.94,1e-08]
[1759110509218,24.1765243,209.95,209.94,1e-08]
[1759110509396,21.79321186,209.95,209.94,1e-08]
[1759110509707,58.57321186,209.95,209.94,1e-08]
[1759110509918,61.76001665,209.95,209.94,1e-08]
[1759110511401,24.98001665,209.95,209.94,1e-08]
[1759110511586,58.57321186,209.95,209.94,1e-08]
[1759110511791,61.76001665,209.95,209.94,1e-08]
[1759110512701,24.98001665,209.95,209.94,1e-08]
[1759110512906,58.57321186,209.95,209.94,1e-08]
[1759110513107,61.76001665,209.95,209.94,1e-08]
[1759110514212,62.61929906,209.95,209.94,1e-08]
[1759110514524,63.33929906,209.95,209.94,1e-08]
[1759110515015,62.61929906,209.95,209.94,1e-08]
[1759110515410,63.33929906,209.95,209.94,1e-08]
[1759110517317,67.34178022,209.95,209.94,1e-08]
[1759110517902,66.62178022,209.95,209.94,1e-08]
[1759110519008,67.34178022,209.95,209.94,1e-08]
[1759110519217,62.61929906,209.95,209.93,0.1]
[1759110519419,20.79093993,209.94,209.93,0.1]
[1759110519809,27.46547494,209.94,209.93,0.1]
[1759110520707,23.45693381,209.94,209.93,0.76]
[1759110520908,60.19693381,209.94,209.93,0.76]
[1759110522219,60.19693381,209.94,209.93,0.1]
[1759110522408,60.19693381,209.94,209.93,0.76]
[1759110522724,63.97215958,209.94,209.93,0.76]
[1759110523406,23.45693381,209.94,209.93,0.76]
[1759110523610,64.09275548,209.94,209.93,0.76]
[1759110524117,60.19693381,209.94,209.93,0.76]
[1759110524630,60.66843925,209.94,209.93,0.76]
[1759110525011,58.28566449,209.94,209.93,0.76]
[1759110525311,60.66843925,209.94,209.93,0.76]
[1759110526215,60.66843925,209.94,209.93,0.1]
[1759110528727,60.66843925,209.94,209.93,0.76]
[1759110529024,60.66843925,209.94,209.93,0.1]
[1759110529238,60.66843925,209.94,209.93,0.76]
[1759110529412,60.66843925,209.94,209.93,0.1]
[1759110530036,60.19684249,209.94,209.93,0.1]
[1759110530538,66.58815838,209.94,209.93,0.1]
[1759110534048,64.20538362,209.94,209.93,0.1]
[1759110534252,66.58815838,209.94,209.93,0.1]
[1759110535546,39.59559401,209.91,209.9,1e-08]
[1759110535847,81.86517356,209.91,209.9,1e-08]
[1759110536029,82.52517356,209.91,209.9,1e-08]
[1759110536229,87.28912001,209.91,209.89,1e-08]
[1759110536429,17.4423988,209.9,209.89,1e-08]
[1759110536656,19.35403349,209.9,209.89,1e-08]
[1759110538229,18.69403349,209.9,209.89,1e-08]
[1759110538435,23.4582069,209.9,209.89,1e-08]
[1759110541227,27.47624419,209.9,209.89,1e-08]
[1759110541427,39.59559401,209.86,209.85,0.1]
[1759110541634,81.86517356,209.86,209.85,0.1]
[1759110542031,83.77708236,209.86,209.85,0.1]
[1759110542936,88.54216384,209.86,209.85,0.1]
[1759110543137,104.42759501,209.86,209.82,1e-08]
[1759110543352,104.42759501,209.86,209.77,0.81]
[1759110543353,13.59559401,209.82,209.81,1e-08]
[1759110543657,53.5823988,209.82,209.81,1e-08]
[1759110543957,55.49485607,209.82,209.81,1e-08]
[1759110544333,60.92084596,209.82,209.8,1e-08]
[1759110544535,13.59559401,209.77,209.76,0.1]
[1759110544748,55.18114353,209.77,209.76,0.1]
[1759110545051,58.36794832,209.77,209.76,0.1]
[1759110545252,57.89799665,209.77,209.76,0.1]
[1759110546235,62.68257077,209.77,209.76,0.1]
[1759110546846,65.72534553,209.77,209.76,0.1]
[1759110547144,62.52109251,209.77,209.76,0.1]
[1759110547962,13.59559401,209.76,209.75,1e-08]
[1759110548257,39.59559401,209.74,209.73,0.1]
[1759110548455,78.79836877,209.74,209.73,0.1]
[1759110548757,78.83836877,209.74,209.73,0.1]
[1759110549059,80.73146632,209.74,209.73,0.1]
[1759110549352,85.49927408,209.74,209.73,0.1]
[1759110549756,48.65927408,209.74,209.73,0.1]
[1759110549933,4.29587231,209.74,209.73,0.81]
[1759110550135,13.59559401,209.78,209.73,0.81]
[1759110550358,2.38277476,209.77,209.73,5.57798814]
[1759110550559,39.26277476,209.77,209.74,0.71]
[1759110550743,26.0,209.75,209.74,0.71]
[1759110551551,7.14969379,209.78,209.74,0.71]
[1759110551753,26.0,209.75,209.74,0.71]
[1759110552058,2.38277476,209.76,209.74,0.71]
[1759110552268,26.0,209.75,209.74,0.71]
[1759110553141,62.9,209.75,209.74,0.71]
[1759110553342,67.66758045,209.75,209.74,0.71]
[1759110553655,67.66758045,209.75,209.73,0.1]
[1759110553958,39.30277476,209.74,209.73,0.75]
[1759110554841,15.97836877,209.74,209.73,0.1]
[1759110555145,52.89836877,209.74,209.73,0.1]
[1759110555461,20.74617653,209.74,209.73,0.1]
[1759110555653,57.66617653,209.74,209.73,0.1]
[1759110556248,52.89836877,209.74,209.73,0.1]
[1759110556560,52.89836877,209.74,209.73,0.75]
[1759110557563,57.66617653,209.74,209.73,0.75]
[1759110558458,20.74617653,209.74,209.73,0.1]
[1759110558663,57.64617653,209.74,209.73,0.1]
[1759110558861,20.74617653,209.74,209.73,0.1]
[1759110559061,57.64617653,209.74,209.73,0.1]
[1759110559260,57.64617653,209.74,209.73,0.75]
[1759110559456,2.38277476,209.74,209.73,0.75]
[1759110559652,2.38277476,209.76,209.73,0.75]
[1759110559968,26.0,209.74,209.73,0.75]
[1759110560167,26.0,209.75,209.73,5.51803509]
[1759110560366,26.0,209.75,209.74,0.65]
[1759110561776,26.0,209.75,209.74,5.41780776]
[1759110562152,26.0,209.75,209.74,5.44780776]
[1759110566374,132.8,209.79,209.74,17.36732716]
[1759110566669,26.0,209.76,209.75,0.68]
[1759110566872,26.0,209.79,209.75,0.68]
[1759110567078,2.38277476,209.8,209.75,0.68]
[1759110567577,26.0,209.79,209.75,0.68]
[1759110568172,26.0,209.79,209.76,4.76735316]
[1759110568352,26.0,209.79,209.77,0.68]
[1759110569554,2.38277476,209.82,209.77,0.68]
[1759110569873,26.0,209.83,209.77,0.68]
[1759110569874,2.38277476,209.84,209.77,0.68]
[1759110570082,132.8,209.86,209.77,0.68]
[1759110570083,135.18277476,209.86,209.77,0.68]
[1759110570270,135.18277476,209.86,209.78,16.68414528]
[1759110570472,135.18277476,209.86,209.79,0.68]
[1759110570473,26.0,209.83,209.79,0.68]
[1759110570777,135.18277476,209.86,209.79,0.68]
[1759110570968,2.38277476,209.88,209.79,0.68]
[1759110571364,133.49,209.93,209.8,13.59559401]
[1759110571556,2.38277476,209.89,209.81,0.68]
[1759110571758,28.38277476,209.89,209.81,0.68]
[1759110572066,2.38277476,209.89,209.81,0.68]
[1759110572267,2.38277476,209.89,209.82,16.68096463]
[1759110572474,28.38277476,209.89,209.83,0.68]
[1759110572780,2.38277476,209.87,209.83,0.68]
[1759110574177,2.38277476,209.87,209.84,4.76553564]
[1759110574385,27.52507728,209.88,209.85,0.68]
[1759110574571,27.52507728,209.88,209.86,0.68]
[1759110576487,27.52507728,209.88,209.86,5.4450642]
[1759110576669,26.0,209.88,209.86,5.4450642]
[1759110577261,26.0,209.88,209.86,0.68]
[1759110578277,5.45394818,209.91,209.87,0.68]
[1759110578278,1.52507728,209.91,209.87,0.68]
[1759110578479,133.0,209.98,209.88,4.7646274]
[1759110578480,1.52507728,209.95,209.88,4.7646274]
[1759110578666,1.52507728,209.95,209.89,0.68]
[1759110579188,26.0,209.97,209.89,0.68]
[1759110579394,1.52507728,209.97,209.89,0.68]
[1759110579776,27.52507728,209.97,209.9,16.67460694]
[1759110579981,27.52507728,209.97,209.91,0.68]
[1759110580370,1.52507728,209.95,209.91,0.68]
[1759110580571,1.52507728,209.95,209.92,0.68]
[1759110583682,1.52507728,209.95,209.93,0.68]
[1759110584190,1.52507728,209.95,209.88,0.68]
[1759110584191,2.21507728,209.94,209.88,0.68]
[1759110584386,27.52507728,209.92,209.87,0.68]
[1759110584588,1.52507728,209.9,209.82,0.68]
[1759110584793,26.0,209.92,209.82,5.44598989]
[1759110584794,1.52507728,209.88,209.82,5.44598989]
[1759110584995,1.52507728,209.86,209.82,5.44598989]
[1759110585184,1.52507728,209.86,209.77,36.88]
[1759110585185,2.21507728,209.86,209.8,0.68]
[1759110585593,26.0,209.84,209.8,0.68]
[1759110585971,27.52507728,209.84,209.8,5.44624062]
[1759110586171,27.52507728,209.84,209.81,0.68]
[1759110586494,1.52507728,209.84,209.79,0.68]
[1759110586694,1.52507728,209.84,209.8,0.68]
[1759110587585,1.52507728,209.84,209.8,5.44628847]
[1759110588289,26.0,209.85,209.81,0.68]
[1759110588591,1.52507728,209.86,209.8,16.68239905]
[1759110588794,1.52507728,209.86,209.82,0.68]
[1759110588996,1.52507728,209.86,209.8,16.68239905]
[1759110589189,1.52507728,209.84,209.8,4.76628847]
[1759110589695,1.52507728,209.84,209.77,11.91751795]
[1759110589696,27.52507728,209.84,209.77,4.76712589]
[1759110589888,1.52507728,209.82,209.77,4.76712589]
[1759110590086,1.52507728,209.82,209.78,0.68]
[1759110590399,27.52507728,209.84,209.79,0.68]
[1759110590584,27.52507728,209.84,209.8,0.68]
[1759110590980,28.21507728,209.84,209.78,0.72]
[1759110592001,28.21507728,209.84,209.79,4.76667143]
[1759110592199,2.21507728,209.84,209.79,5.48667143]
[1759110592589,2.21507728,209.84,209.8,0.72]
[1759110593809,2.21507728,209.84,209.81,4.76621705]
[1759110594011,26.0,209.87,209.81,4.76621705]
[1759110594194,27.52507728,209.85,209.81,4.76621705]
[1759110594508,28.21507728,209.85,209.81,4.76621705]
[1759110594695,28.21507728,209.85,209.8,0.72]
[1759110594696,27.52507728,209.85,209.8,4.76641662]
[1759110594908,1.52507728,209.83,209.76,4.76718188]
[1759110595085,1.52507728,209.81,209.76,4.76718188]
[1759110595408,2.21507728,209.81,209.76,5.48718188]
[1759110595907,1.52507728,209.83,209.77,0.72]
[1759110596136,1.52507728,209.87,209.77,0.72]
[1759110596285,2.21507728,209.87,209.77,0.72]
[1759110597007,1.52507728,209.85,209.77,0.72]
[1759110597308,1.52507728,209.83,209.77,0.72]
[1759110597499,1.52507728,209.85,209.77,0.72]
[1759110598005,26.0,209.86,209.78,16.68414528]
[1759110598198,1.52507728,209.87,209.79,0.72]
[1759110598399,2.21507728,209.87,209.79,0.72]
[1759110599309,0.69,209.87,209.79,0.72]
[1759110599880,26.0,209.86,209.8,16.68255481]
[1759110600211,26.0,209.86,209.8,17.40255481]
[1759110600511,26.0,209.86,209.81,0.72]
[1759110600702,0.69,209.87,209.82,0.72]
[1759110600903,1.52507728,209.91,209.83,0.72]
[1759110601092,135.01507728,209.92,209.83,0.72]
[1759110601294,26.0,209.89,209.83,0.72]
[1759110602100,26.0,209.89,209.84,4.76553564]
[1759110602301,26.0,209.89,209.85,0.72]
[1759110603514,26.69,209.89,209.85,0.72]
[1759110603724,26.69,209.89,209.84,16.67937475]
[1759110604021,6.97972574,209.88,209.79,0.72]
[1759110604192,1.52507728,209.86,209.79,0.72]
[1759110604388,0.69,209.85,209.79,0.72]
[1759110604608,0.69,209.85,209.8,16.68255481]
[1759110604815,0.69,209.87,209.81,0.72]
[1759110605908,1.52507728,209.88,209.81,0.72]
[1759110606110,27.52507728,209.88,209.82,16.68096463]
[1759110606315,28.21507728,209.88,209.82,16.68096463]
[1759110606714,26.0,209.88,209.83,0.72]
[1759110606910,26.0,209.88,209.84,0.72]
[1759110607792,26.0,209.89,209.82,16.68096463]
[1759110607997,134.32507728,209.92,209.85,0.72]
[1759110608296,26.0,209.89,209.86,4.76508148]
[1759110608714,26.0,209.89,209.86,17.39778518]
[1759110608902,26.0,209.89,209.86,16.67778518]
[1759110609616,26.0,209.89,209.86,11.9127037]
[1759110610220,26.0,209.89,209.86,12.6327037]
[1759110610518,132.8,209.92,209.87,0.72]
[1759110610694,158.8,209.92,209.88,0.72]
[1759110610896,37.63,209.94,209.89,0.72]
[1759110611138,1.52507728,209.96,209.9,0.72]
[1759110611320,26.0,209.95,209.88,0.72]
[1759110611620,0.69,209.95,209.88,0.72]
[1759110611924,26.69,209.95,209.89,4.7644004]
[1759110612220,26.0,209.95,209.89,4.7644004]
[1759110612406,0.69,209.94,209.89,4.7644004]
[1759110612603,0.69,209.93,209.89,4.7644004]
[1759110612795,0.69,209.93,209.89,5.4844004]
[1759110613193,26.0,209.94,209.89,17.3954014]
[1759110613396,26.69,209.94,209.89,17.3954014]
[1759110614317,0.69,209.94,209.89,16.6754014]
[1759110614510,27.52507728,209.95,209.9,0.72]
[1759110614709,26.69,209.94,209.89,16.6754014]
[1759110614904,26.0,209.94,209.9,0.72]
[1759110615107,26.0,209.94,209.91,0.72]
[1759110615420,2.41507728,209.98,209.91,0.72]
[1759110615619,0.89,209.98,209.91,0.72]
[1759110615919,26.0,209.97,209.92,16.67301829]
[1759110616099,26.69,209.97,209.92,17.39301829]
[1759110616297,26.0,209.97,209.92,17.39301829]
[1759110616497,26.69,209.97,209.92,17.39301829]
[1759110616724,0.2,209.98,209.93,0.72]
[1759110616895,26.2,209.98,209.94,0.72]
[1759110617515,0.2,209.98,209.92,16.67301829]
[1759110617708,0.89,209.98,209.92,17.39301829]
[1759110618226,26.0,209.97,209.92,17.39301829]
[1759110618422,26.0,209.97,209.93,0.72]
[1759110619101,26.0,209.97,209.94,4.76326569]
[1759110619319,0.69,209.96,209.91,0.72]
[1759110619632,26.0,209.97,209.92,0.72]
[1759110619804,0.69,209.97,209.92,0.72]
[1759110620000,26.2,209.98,209.93,0.72]
[1759110620225,0.89,209.98,209.93,0.72]
[1759110620413,26.89,209.98,209.93,0.72]
[1759110620920,0.69,209.97,209.93,0.72]
[1759110621115,0.69,209.97,209.94,4.76326569]
[1759110621518,26.2,209.98,209.94,4.76326569]
[1759110621820,26.89,209.98,209.94,4.76326569]
[1759110622926,0.89,209.98,209.94,16.67142992]
[1759110623239,0.89,209.98,209.94,11.90816423]
[1759110623423,0.89,209.98,209.93,4.76349259]
[1759110623424,0.69,209.97,209.93,4.76349259]
[1759110623726,0.69,209.96,209.93,4.76349259]
[1759110624831,0.89,209.98,209.93,4.76349259]
[1759110625006,0.69,209.97,209.93,4.76349259]
[1759110626223,26.2,209.98,209.94,0.67]
[1759110626638,26.2,209.98,209.92,0.67]
[1759110626811,26.89,209.98,209.92,0.67]
[1759110627128,1.52507728,209.97,209.88,4.7646274]
[1759110627316,27.52507728,209.95,209.88,4.7646274]
[1759110627510,26.69,209.94,209.88,4.7646274]
[1759110628221,26.0,209.93,209.88,4.7646274]
[1759110628710,0.69,209.92,209.88,5.4346274]
[1759110630031,26.0,209.94,209.88,16.67619591]
[1759110630230,26.69,209.94,209.9,4.76417341]
[1759110631830,26.69,209.94,209.85,16.67857993]
[1759110632039,26.69,209.94,209.89,0.67]
[1759110632327,0.69,209.93,209.85,16.67857993]
[1759110632513,0.69,209.93,209.87,0.67]
[1759110632719,0.69,209.92,209.85,16.67857993]
[1759110632932,0.69,209.92,209.86,0.67]
[1759110633326,0.69,209.92,209.87,16.67699051]
[1759110633688,26.0,209.94,209.88,0.67]
[1759110634016,26.69,209.94,209.88,0.67]
[1759110636038,26.69,209.94,209.89,4.7644004]
[1759110636221,26.69,209.94,209.89,5.4344004]
[1759110636415,0.69,209.93,209.89,5.4344004]
[1759110636832,0.69,209.93,209.89,4.7644004]
[1759110638249,0.69,209.93,209.89,5.4344004]
[1759110638441,26.0,209.94,209.9,0.67]
[1759110638637,26.0,209.94,209.89,16.6754014]
[1759110638638,26.0,209.94,209.91,0.67]
[1759110639028,26.69,209.94,209.89,17.3454014]
[1759110639226,0.69,209.93,209.89,17.3454014]
[1759110639445,30.76337284,209.94,209.82,25.51012666]
[1759110639638,2.38129493,209.91,209.83,0.67]
[1759110639840,0.69,209.9,209.83,0.67]
[1759110640228,0.69,209.9,209.84,4.76553564]
[1759110640440,29.07129493,209.89,209.84,4.76553564]
[1759110641050,26.69,209.88,209.84,4.76553564]
[1759110643242,26.0,209.86,209.82,4.76580103]
[1759110643431,0.69,209.85,209.82,4.76580103]
[1759110643630,0.69,209.84,209.77,4.76710458]
[1759110643851,0.69,209.83,209.77,4.76710458]
[1759110644449,0.69,209.82,209.77,4.76710458]
[1759110644652,29.07129493,209.81,209.77,4.76710458]
[1759110644949,26.69,209.8,209.76,4.76732584]
[1759110645148,26.0,209.8,209.76,5.43732584]
[1759110645357,2.38129493,209.79,209.76,4.76732584]
[1759110645536,2.38129493,209.79,209.77,0.67]
[1759110646248,26.69,209.83,209.77,0.67]
[1759110646452,2.38129493,209.79,209.77,0.67]
[1759110646757,2.38129493,209.79,209.78,4.76689865]
[1759110647854,2.38129493,209.79,209.77,5.43709813]
[1759110652240,2.38129493,209.79,209.78,0.71]
[1759110652433,2.38129493,209.79,209.76,0.71]
[1759110652637,2.38129493,209.79,209.75,11.9186677]
[1759110652961,2.38129493,209.79,209.76,0.71]
[1759110653451,2.38129493,209.79,209.75,11.9186677]
[1759110653452,2.38129493,209.79,209.78,4.76689865]
[1759110654058,0.66,209.81,209.78,4.76689865]
[1759110654238,2.38129493,209.79,209.78,4.76689865]
[1759110656447,3.04129493,209.79,209.73,0.81]
[1759110656644,2.38129493,209.76,209.73,5.57793744]
[1759110656852,0.66,209.78,209.73,5.57793744]
[1759110657039,2.38129493,209.75,209.73,5.57793744]
[1759110657242,2.38129493,209.75,209.73,4.86793744]
[1759110658264,2.38129493,209.75,209.73,5.57793744]
[1759110658650,2.38129493,209.75,209.73,4.86793744]
[1759110658851,2.38129493,209.75,209.74,0.71]
[1759110659165,2.38129493,209.76,209.74,0.71]
[1759110659345,2.38129493,209.76,209.75,0.71]
[1759110659844,2.38129493,209.78,209.75,0.71]
[1759110660155,2.38129493,209.78,209.76,4.76735316]
[1759110661572,2.38129493,209.78,209.74,4.76780776]
[1759110661774,2.38129493,209.78,209.75,0.71]
[1759110661947,2.38129493,209.78,209.74,16.68732716]
[1759110661948,2.38129493,209.76,209.73,4.86800494]
[1759110662152,2.38129493,209.74,209.73,0.1]
[1759110662673,3.04129493,209.74,209.73,0.1]
[1759110663707,29.04129493,209.74,209.73,0.1]
[1759110664058,26.66,209.74,209.73,0.1]
[1759110664274,29.04129493,209.74,209.73,0.1]
[1759110665567,7.80910269,209.74,209.73,0.1]
[1759110665955,33.80910269,209.74,209.73,0.1]
[1759110666162,7.80910269,209.74,209.73,0.1]
[1759110666365,9.72155996,209.74,209.73,0.1]
[1759110666675,0.66,209.8,209.73,5.57803509]
[1759110666880,2.38129493,209.76,209.73,0.1]
[1759110667063,2.38129493,209.74,209.73,0.1]
[1759110667385,3.04129493,209.74,209.73,0.1]
[1759110667567,2.38129493,209.74,209.73,0.1]
[1759110668070,3.04129493,209.74,209.73,0.1]
[1759110668648,2.38129493,209.74,209.73,0.1]
[1759110669576,3.04129493,209.74,209.73,0.1]
[1759110671670,7.80910269,209.74,209.73,0.1]
[1759110671868,58.2846967,209.74,209.73,0.1]
[1759110672273,60.19742832,209.74,209.73,0.1]
[1759110672968,26.0,209.71,209.7,0.1]
[1759110673175,28.38129493,209.71,209.7,0.1]
[1759110673377,29.04129493,209.71,209.7,0.1]
[1759110673756,33.80978474,209.71,209.7,0.1]
[1759110674369,70.70978474,209.71,209.7,0.1]
[1759110675579,33.80978474,209.71,209.7,0.1]
[1759110675760,70.68978474,209.71,209.7,0.1]
[1759110676279,70.70978474,209.71,209.7,0.1]
[1759110676479,70.68978474,209.71,209.7,0.1]
[1759110676975,0.66,209.71,209.7,0.1]
[1759110677181,39.26129493,209.71,209.7,0.82]
[1759110677474,28.38129493,209.71,209.7,0.82]
[1759110677658,28.38129493,209.71,209.7,0.1]
[1759110678577,33.80978474,209.71,209.7,0.1]
[1759110679154,65.30129493,209.71,209.7,0.1]
[1759110679561,28.38129493,209.71,209.7,0.1]
[1759110679768,28.38129493,209.71,209.7,0.82]
[1759110680462,28.38129493,209.71,209.7,5.58871721]
[1759110680976,26.0,209.71,209.7,5.58871721]
[1759110681282,2.38129493,209.73,209.7,5.58871721]
[1759110681472,2.38129493,209.75,209.71,0.67]
[1759110681882,2.38129493,209.75,209.72,4.76826244]
[1759110682093,2.38129493,209.75,209.73,0.67]
[1759110682264,2.38129493,209.75,209.74,0.67]
[1759110683200,2.38129493,209.75,209.74,5.43780776]
[1759110684262,2.38129493,209.75,209.71,4.76848981]
[1759110684591,2.38129493,209.75,209.72,0.67]
[1759110684772,2.38129493,209.75,209.73,0.67]
[1759110684970,2.38129493,209.75,209.74,0.67]
[1759110685184,2.38129493,209.75,209.74,5.43780776]
[1759110686181,2.38129493,209.77,209.74,17.35732716]
[1759110686363,2.38129493,209.77,209.74,16.68732716]
[1759110686560,2.38129493,209.77,209.75,0.67]
[1759110686761,26.0,209.78,209.76,0.67]
[1759110686997,2.38129493,209.84,209.76,0.67]
[1759110687169,30.82,209.86,209.77,16.68494063]
[1759110687370,26.0,209.83,209.78,0.67]
[1759110687568,2.38129493,209.82,209.78,0.67]
[1759110687973,2.38129493,209.82,209.79,0.67]
[1759110688169,2.38129493,209.82,209.8,0.67]
[1759110688375,2.38129493,209.82,209.81,0.67]
[1759110689264,2.38129493,209.84,209.82,4.76598989]
[1759110689469,29.10129493,209.84,209.8,4.76627565]
[1759110689661,2.38129493,209.82,209.8,4.76627565]
[1759110689870,2.38129493,209.82,209.8,5.43627565]
[1759110690377,2.38129493,209.82,209.74,23.8390388]
[1759110690684,26.72,209.84,209.75,17.35653158]
[1759110690685,2.38129493,209.8,209.75,17.35653158]
[1759110690980,2.38129493,209.8,209.76,0.67]
[1759110691186,2.38129493,209.8,209.75,16.68653158]
[1759110691187,2.38129493,209.8,209.77,0.67]
[1759110691488,2.38129493,209.8,209.78,4.76689865]
[1759110693991,26.0,209.83,209.79,0.67]
[1759110694172,2.38129493,209.81,209.79,0.67]
[1759110694373,2.38129493,209.81,209.78,4.76689865]
[1759110694590,2.38129493,209.81,209.79,0.67]
[1759110694890,2.38129493,209.81,209.79,5.43646781]
[1759110695667,2.38129493,209.81,209.79,4.76646781]
[1759110695869,2.38129493,209.81,209.79,5.43646781]
[1759110696290,1.52611666,209.8,209.79,5.43646781]
[1759110696897,1.52611666,209.82,209.79,17.35314639]
[1759110697195,1.52611666,209.82,209.8,0.67]
[1759110697396,1.52611666,209.82,209.81,0.67]
[1759110698283,1.52611666,209.82,209.81,5.43621705]
[1759110699072,26.0,209.85,209.81,5.43621705]
[1759110699286,1.52611666,209.82,209.81,5.43621705]
[1759110700378,1.52611666,209.84,209.81,5.43621705]
[1759110700584,1.52611666,209.84,209.82,0.67]
[1759110701907,1.52611666,209.84,209.83,0.67]
[1759110702597,1.52611666,209.84,209.83,4.7657121]
[1759110704180,1.52611666,209.84,209.83,5.4357121]
[1759110705809,1.52611666,209.84,209.82,0.67]
[1759110706111,1.52611666,209.84,209.83,0.67]
[1759110707707,1.52611666,209.84,209.81,0.67]
[1759110708019,1.52611666,209.84,209.82,0.67]
[1759110708222,1.52611666,209.84,209.83,0.67]
[1759110708424,1.52611666,209.84,209.83,5.43576276]
[1759110709189,1.52611666,209.88,209.83,17.35016966]
[1759110709393,1.52611666,209.88,209.84,0.67]
[1759110710418,1.52611666,209.88,209.85,16.67857993]
[1759110710624,1.52611666,209.88,209.86,0.67]
[1759110710823,1.52611666,209.9,209.86,0.67]
[1759110711026,1.52611666,209.92,209.86,0.67]
[1759110711797,1.72611666,209.96,209.87,13.59559401]
[1759110712001,1.72611666,209.96,209.89,13.59559401]
[1759110712200,1.72611666,209.96,209.9,0.72]
[1759110712595,1.72611666,209.96,209.91,16.67381258]
[1759110712797,1.72611666,209.96,209.92,0.72]
[1759110712999,1.72611666,209.96,209.93,0.72]
[1759110713216,1.72611666,209.96,209.94,0.72]
[1759110713511,2.40611666,209.96,209.91,17.39381258]
[1759110713730,1.52611666,209.92,209.89,4.7644004]
[1759110713912,2.20611666,209.92,209.89,4.7644004]
[1759110714133,1.52611666,209.9,209.89,4.7644004]
[1759110714609,1.52611666,209.9,209.88,4.7646274]
[1759110716095,1.52611666,209.9,209.88,0.72]
[1759110716717,0.68,209.89,209.81,12.63536888]
[1759110716901,1.52611666,209.86,209.81,12.63536888]
[1759110717216,1.52611666,209.86,209.82,5.48598989]
[1759110717818,1.52611666,209.88,209.83,0.72]
[1759110718323,1.52611666,209.88,209.84,16.67937475]
[1759110718500,1.52611666,209.9,209.85,0.72]
[1759110718699,26.0,209.91,209.86,0.72]
[1759110718899,1.52611666,209.9,209.86,0.72]
[1759110721623,1.52611666,209.9,209.87,4.76485443]
[1759110723099,1.52611666,209.9,209.87,5.48485443]
[1759110723520,1.52611666,209.9,209.87,4.76485443]
[1759110726025,1.52611666,209.9,209.87,0.72]
[1759110727427,1.52611666,209.9,209.81,13.59559401]
[1759110727643,1.52611666,209.86,209.8,16.68255481]
[1759110727845,1.52611666,209.86,209.81,0.72]
[1759110728022,2.20611666,209.86,209.82,4.76598989]
[1759110728221,2.20611666,209.86,209.82,5.48598989]
[1759110729019,0.68,209.88,209.82,17.40096463]
[1759110729343,1.52611666,209.86,209.83,0.72]